[Event "NOR-chT Eliteserien 2021-22"]
[Site "Norway"]
[Date "2022.03.05"]
[Round "8.26"]
[White "Djurhuus, Rune"]
[Black "Ostenstad, Berge"]
[Result "1/2-1/2"]
[ECO "B48"]
[WhiteElo "2403"]
[BlackElo "2455"]
[Annotator "ChessBase"]
[PlyCount "99"]
[EventDate "2021.10.29"]
[EventType "team-tourn"]
[EventCountry "NOR"]
[SourceTitle "playchess.com"]
[Source "ChessBase"]
[SourceQuality "1"]
[TimeControl "40/5400+30:1800+30"]

1. e4 {[%emt 1:31:00]} c5 {[%emt 1:31:00]} 2. Nf3 {[%emt 0:00:30]} e6 {[%emt 0:00:30]} 3. d4 {[%emt 0:00:30]} cxd4 {[%emt 0:00:30]} 4. Nxd4 {[%emt 0:00:30]} Nc6 {[%emt 0:00:30]} 5. Nc3 {[%emt 0:00:30]} a6 {[%emt 0:00:30]} 6. Be3 {[%emt 0:00:30]} Nf6 {[%emt 0:00:30]} 7. a3 {[%emt 0:00:30]} Qc7 {[%emt 0:00:30]} 8. f4 {[%emt 0:00:30]} d6 {[%emt 0:00:30]} 9. Bd3 {[%emt 0:00:30]} Be7 {[%emt 0:00:30]} 10. Qf3 {[%emt 0:00:30]} O-O {[%emt 0:00:30]} 11. O-O {[%emt 0:00:30]} Nxd4 {[%emt 0:00:30]} 12. Bxd4 {[%emt 0:00:30]} e5 {[%emt 0:00:30]} 13. Be3 {[%emt 0:00:30]} exf4 {[%emt 0:00:30]} 14. Qxf4 {[%emt 0:00:30]} Be6 {[%emt 0:00:30]} 15. Bd4 {[%emt 0:00:30]} Nd7 {[%emt 0:00:30]} 16. Nd5 {[%emt 0:00:30]} Bxd5 {[%emt 0:00:30]} 17. exd5 {[%emt 0:00:30]} Ne5 {[%emt 0:00:30]} 18. Qg3 {[%emt 0:00:30]} Rae8 {[%emt 0:00:30]} 19. Rae1 {[%emt 0:00:30]} g6 {[%emt 0:00:30]} 20. Kh1 {[%emt 0:00:30]} Qd8 {[%emt 0:00:30]} 21. Bxe5 {[%emt 0:00:30]} dxe5 {[%emt 0:00:30]} 22. Rxe5 {[%emt 0:00:30]} Bd6 {[%emt 0:00:30]} 23. Rxe8 {[%emt 0:00:30]} Rxe8 {[%emt 0:00:30]} 24. Qf2 {[%emt 0:00:30]} Qe7 {[%emt 0:00:30]} 25. g3 {[%emt 0:00:30]} f5 {[%emt 0:00:30]} 26. b4 {[%emt 0:00:30]} a5 {[%emt 0:00:30]} 27. Qd4 {[%emt 0:00:30]} axb4 {[%emt 0:00:30]} 28. axb4 {[%emt 0:00:30]} h5 {[%emt 0:00:30]} 29. Rb1 {[%emt 0:00:30]} Ra8 {[%emt 0:00:30]} 30. c4 {[%emt 0:00:30]} b6 {[%emt 0:00:30]} 31. Qxb6 {[%emt 0:00:30]} Rb8 {[%emt 0:00:30]} 32. Qc6 {[%emt 0:00:30]} Rxb4 {[%emt 0:00:30]} 33. Rxb4 {[%emt 0:00:30]} Qe1+ {[%emt 0:00:30]} 34. Kg2 {[%emt 0:00:30]} Qxb4 {[%emt 0:00:30]} 35. Qe8+ {[%emt 0:00:30]} Kg7 {[%emt 0:00:30]} 36. Qd7+ {[%emt 0:00:30]} Kh6 {[%emt 0:00:30]} 37. Kh3 {[%emt 0:00:30]} Bf8 {[%emt 0:00:30]} 38. Qe6 {[%emt 0:00:30]} Kg7 {[%emt 0:00:30]} 39. Qe5+ {[%emt 0:00:30]} Kg8 {[%emt 0:00:30]} 40. Qe6+ {[%emt 0:00:30]} Kg7 {[%emt 0:00:30]} 41. Qe5+ {[%emt 0:30:30]} Kg8 {[%emt 0:30:30]} 42. Bxf5 {[%emt 0:00:30]} gxf5 {[%emt 0:00:30]} 43. Qxf5 {[%emt 0:00:30]} Qxc4 {[%emt 0:00:30]} 44. Qg6+ {[%emt 0:00:30]} Bg7 {[%emt 0:00:30]} 45. Qe6+ {[%emt 0:00:30]} Kh7 {[%emt 0:00:30]} 46. Qf5+ {[%emt 0:00:30]} Kh6 {[%emt 0:00:30]} 47. d6 {[%emt 0:00:30]} Qd4 {[%emt 0:00:30]} 48. d7 {[%emt 0:00:30]} Bf6 {[%emt 0:00:30]} 49. Qf4+ {[%emt 0:00:30]} Qxf4 {[%emt 0:00:30]} 50. gxf4 {[%emt 0:00:30]} 1/2-1/2

[Event "NOR-chT Eliteserien 2021-22"]
[Site "Norway"]
[Date "2022.03.05"]
[Round "8.27"]
[White "Haubro, Martin"]
[Black "Sjoberg, Isak"]
[Result "0-1"]
[ECO "C90"]
[WhiteElo "2399"]
[BlackElo "2322"]
[Annotator "NA"]
[PlyCount "50"]
[EventDate "2021.10.29"]
[EventType "team-tourn"]
[EventCountry "NOR"]
[SourceTitle "playchess.com"]
[Source "ChessBase"]
[SourceQuality "1"]
[TimeControl "40/5400+30:1800+30"]

1. e4 {[%emt 0:00:03]} e5 {[%emt 0:00:25]} 2. Nf3 {[%emt 0:00:04]} Nc6 {[%emt 0:00:30]} 3. Bb5 {[%emt 0:00:09]} a6 {[%emt 0:00:53]} 4. Ba4 {[%emt 0:00:04]} Nf6 {[%emt 0:00:13]} 5. O-O {[%emt 0:00:05]} Be7 {[%emt 0:00:04]} 6. Re1 {[%emt 0:00:04]} b5 {[%emt 0:00:05]} 7. Bb3 {[%emt 0:00:03]} O-O {[%emt 0:00:08]} 8. a4 {[%emt 0:00:39]} b4 {[%emt 0:01:14]} 9. a5 {[%emt 0:00:27]} d6 {[%emt 0:00:06]} 10. c3 {[%emt 0:00:23]} Rb8 {[%emt 0:12:17]} 11. Bc4 {[%emt 0:01:10]} bxc3 {[%emt 0:07:21]} 12. dxc3 {[%emt 0:20:01]} Bb7 {[%emt 0:05:51]} 13. Qd3 {[%emt 0:02:25]} Qc8 {[%emt 0:02:12]} 14. Nbd2 {[%emt 0:01:08]} Nd8 {[%emt 0:04:40]} 15. Nf1 {[%emt 0:05:37]} d5 $18 {[%emt 0:15:04]} (15... Re8 $11 {and Black stays safe.}) 16. exd5 {[%emt 0:08:22]} e4 {[%emt 0:00:35]} 17. Rxe4 {[%emt 0:00:04]} Nxe4 {[%emt 0:00:06]} 18. Qxe4 {[%emt 0:00:04]} Bd6 {[%emt 0:04:10]} 19. Ng5 {[%emt 0:18:31]} f5 {[%emt 0:01:23]} 20. Qh4 {[%emt 0:00:05]} h6 {[%emt 0:00:31]} 21. Ne6 {[%emt 0:00:06]} Nxe6 {[%emt 0:06:16]} 22. dxe6 {[%emt 0:00:04]} Kh7 {[%emt 0:00:39]} 23. e7 {[%emt 0:31:25]} Rf6 {[%emt 0:13:36]} 24. Ng3 {[%emt 0:02:09]} Qd7 {[%emt 0:01:59]} 25. f3 {[%emt 0:03:54]} Bc5+ {[%emt 0:03:14]} 0-1

[Event "NOR-chT Eliteserien 2021-22"]
[Site "Norway"]
[Date "2022.03.05"]
[Round "8.28"]
[White "Tryggestad, Andreas Garberg"]
[Black "Tisdall, Jonathan D"]
[Result "1-0"]
[ECO "A84"]
[WhiteElo "2273"]
[BlackElo "2414"]
[Annotator "NA"]
[PlyCount "81"]
[EventDate "2021.10.29"]
[EventType "team-tourn"]
[EventCountry "NOR"]
[SourceTitle "playchess.com"]
[Source "ChessBase"]
[SourceQuality "1"]
[TimeControl "40/5400+30:1800+30"]

1. d4 {[%emt 1:31:00]} f5 {[%emt 1:31:00]} 2. c4 {[%emt 0:00:30]} Nf6 {[%emt 0:00:30]} 3. Nc3 {[%emt 0:00:30]} e6 {[%emt 0:00:30]} 4. Nf3 {[%emt 0:00:30]} b6 {[%emt 0:00:30]} 5. g3 {[%emt 0:00:30]} Bb7 {[%emt 0:00:30]} 6. Bg2 {[%emt 0:00:30]} g6 {[%emt 0:00:30]} 7. d5 {[%emt 0:00:30]} Bg7 {[%emt 0:00:30]} 8. dxe6 {[%emt 0:00:30]} dxe6 {[%emt 0:00:30]} 9. Qxd8+ {[%emt 0:00:30]} Kxd8 {[%emt 0:00:30]} 10. Bf4 {[%emt 0:00:30]} Na6 {[%emt 0:00:30]} (10... Kc8 $11 {feels stronger.}) 11. Nb5 {[%emt 0:00:30]} ({White should play} 11. O-O $14) 11... Nh5 {[%emt 0:00:30]} 12. Bg5+ {[%emt 0:00:30]} Kc8 {[%emt 0:00:30]} 13. O-O-O {[%emt 0:00:30]} e5 {[%emt 0:00:30]} 14. Bh3 {[%emt 0:00:30]} Nf6 {[%emt 0:00:30]} 15. Bxf6 $11 {[%emt 0:00:30]} ({But not} 15. Nxe5 Bxh1 16. Rxh1 Ne4 $17) 15... Bxf6 {[%emt 0:00:30]} 16. g4 {[%emt 0:00:30]} Bxf3 {[%emt 0:00:30]} 17. exf3 {[%emt 0:00:30]} Bg5+ {[%emt 0:00:30]} 18. f4 {[%emt 0:00:30]} Bxf4+ {[%emt 0:00:30]} 19. Kb1 Rf8 {[%emt 0:00:30]} 20. gxf5 {[%emt 0:01:00]} gxf5 {[%emt 0:00:30]} 21. Bg2 {[%emt 0:00:30]} e4 {[%emt 0:00:30]} 22. Nd4 {[%emt 0:00:30]} Be5 {[%emt 0:00:30]} 23. Nxf5 {[%emt 0:00:30]} c6 {[%emt 0:00:30]} 24. Bxe4 {[%emt 0:00:30]} Nc5 {[%emt 0:00:30]} 25. Bc2 {[%emt 0:00:30]} Kc7 {[%emt 0:00:30]} 26. Rhe1 {[%emt 0:00:30]} Rae8 {[%emt 0:00:30]} 27. Re3 {[%emt 0:00:30]} Bf4 {[%emt 0:00:30]} 28. Rf3 {[%emt 0:00:30]} Bg5 {[%emt 0:00:30]} 29. Rg3 {[%emt 0:00:30]} h6 {[%emt 0:00:30]} 30. h4 {[%emt 0:00:30]} Bf6 {[%emt 0:00:30]} 31. Rg6 {[%emt 0:00:30]} Re2 {[%emt 0:00:30]} 32. Rxh6 {[%emt 0:00:30]} Rxf2 {[%emt 0:00:30]} 33. Rh7+ {[%emt 0:00:30]} Kb8 {[%emt 0:00:30]} 34. b4 {[%emt 0:00:30]} Na4 {[%emt 0:00:30]} 35. Bxa4 {[%emt 0:00:30]} Rxf5 {[%emt 0:00:30]} 36. Bxc6 {[%emt 0:00:30]} Rf2 {[%emt 0:00:30]} 37. Rb7+ {[%emt 0:00:30]} Kc8 {[%emt 0:00:30]} 38. Rxa7 {[%emt 0:00:30]} Bxh4 {[%emt 0:00:30]} 39. Rdd7 {[%emt 0:00:30]} Bg3 {[%emt 0:00:30]} 40. Re7 {[%emt 0:00:30]} Rh2 {[%emt 0:00:30]} 41. Bf3 {[%emt 0:30:30]} 1-0

[Event "NOR-chT Eliteserien 2021-22"]
[Site "Norway"]
[Date "2022.03.05"]
[Round "8.29"]
[White "Sahl, Bjarke"]
[Black "Torngren, Gustav"]
[Result "1/2-1/2"]
[ECO "D31"]
[WhiteElo "2306"]
[BlackElo "2229"]
[Annotator "NA"]
[PlyCount "104"]
[EventDate "2021.10.29"]
[EventType "team-tourn"]
[EventCountry "NOR"]
[SourceTitle "playchess.com"]
[Source "ChessBase"]
[SourceQuality "1"]
[TimeControl "40/5400+30:1800+30"]

1. d4 {[%emt 0:00:06]} d5 {[%emt 0:00:22]} 2. c4 {[%emt 0:01:33]} e6 {[%emt 0:02:48]} 3. Nc3 {[%emt 0:00:44]} a6 {[%emt 0:01:08]} 4. cxd5 {[%emt 0:02:50]} exd5 {[%emt 0:00:12]} 5. Nf3 {[%emt 0:00:03]} h6 {[%emt 0:01:17]} 6. Bf4 {[%emt 0:00:59]} Nf6 {[%emt 0:00:10]} 7. e3 {[%emt 0:00:05]} Bd6 {[%emt 0:01:06]} 8. Bxd6 {[%emt 0:04:50]} Qxd6 {[%emt 0:00:24]} 9. Bd3 {[%emt 0:00:31]} O-O {[%emt 0:01:06]} 10. h3 {[%emt 0:04:22]} Nbd7 {[%emt 0:16:54]} 11. O-O {[%emt 0:11:46]} Re8 {[%emt 0:00:47]} 12. a3 {[%emt 0:10:06]} c6 {[%emt 0:00:22]} 13. Qc2 {[%emt 0:03:15]} Qe7 {[%emt 0:08:51]} 14. Rae1 {[%emt 0:06:43]} Ne4 {[%emt 0:01:07]} 15. Bxe4 {[%emt 0:01:04]} dxe4 {[%emt 0:00:08]} 16. Nd2 {[%emt 0:00:03]} Nf6 {[%emt 0:00:30]} 17. f3 {[%emt 0:04:28]} exf3 {[%emt 0:04:06]} 18. Nxf3 {[%emt 0:02:54]} Ne4 {[%emt 0:07:28]} 19. Ne5 {[%emt 0:04:39]} Nd6 {[%emt 0:01:32]} 20. e4 $11 {[%emt 0:02:33]} Qg5 {[%emt 0:01:14]} 21. Qf2 {[%emt 0:15:05]} Be6 {[%emt 0:08:00]} 22. Nf3 {[%emt 0:02:07]} Qg6 {[%emt 0:02:05]} 23. Nh4 {[%emt 0:01:28]} Qg5 {[%emt 0:08:58]} 24. Nf3 {[%emt 0:07:41]} Qh5 {[%emt 0:02:38]} 25. Qg3 {[%emt 0:01:29]} Rad8 {[%emt 0:01:56]} 26. Rf2 {[%emt 0:05:37]} Qa5 {[%emt 0:04:42]} 27. Qf4 {[%emt 0:02:56]} Rf8 {[%emt 0:02:49]} 28. d5 {[%emt 0:01:11]} cxd5 {[%emt 0:01:27]} 29. exd5 {[%emt 0:00:05]} Bc8 {[%emt 0:01:32]} 30. Nd2 {[%emt 0:02:42]} b5 {[%emt 0:00:52]} 31. Ref1 {[%emt 0:00:35]} Bb7 {[%emt 0:00:19]} 32. Qd4 {[%emt 0:00:12]} Qc7 {[%emt 0:00:45]} 33. Rf4 {[%emt 0:00:56]} f6 {[%emt 0:04:31]} 34. Nde4 {[%emt 0:00:38]} Nxe4 {[%emt 0:01:15]} 35. Rxe4 {[%emt 0:00:07]} Rd7 {[%emt 0:02:34]} 36. Rfe1 {[%emt 0:01:07]} Rfd8 {[%emt 0:06:05]} 37. Re8+ {[%emt 0:00:09]} Rxe8 {[%emt 0:00:12]} 38. Rxe8+ {[%emt 0:00:05]} Kf7 {[%emt 0:00:04]} 39. Re2 {[%emt 0:00:43]} Qd6 {[%emt 0:04:24]} 40. Kf2 {[%emt 0:00:44]} Re7 {[%emt 0:01:37]} 41. Rxe7+ {[%emt 0:30:49]} Kxe7 {[%emt 0:30:23]} 42. b4 {[%emt 0:00:20]} Kd8 {[%emt 0:00:00]} 43. g3 {[%emt 0:00:00]} Qe5 {[%emt 0:00:00]} 44. Qb6+ {[%emt 0:00:00]} Kc8 {[%emt 0:00:00]} 45. Qc5+ {[%emt 0:00:00]} Kd7 {[%emt 0:00:00]} 46. h4 {[%emt 0:00:00]} Qf5+ {[%emt 0:00:00]} 47. Ke3 {[%emt 0:00:00]} Qe5+ {[%emt 0:00:00]} 48. Kf2 {[%emt 0:00:00]} h5 {[%emt 0:00:00]} 49. a4 {[%emt 0:00:00]} Qf5+ {[%emt 0:00:00]} 50. Ke3 {[%emt 0:00:00]} Qe5+ {[%emt 0:00:00]} 51. Kf2 {[%emt 0:00:00]} Qf5+ {[%emt 0:00:00]} 52. Ke3 {[%emt 0:00:00]} Qe5+ {[%emt 0:00:00]} 1/2-1/2

[Event "NOR-chT Eliteserien 2021-22"]
[Site "Norway"]
[Date "2022.03.05"]
[Round "8.30"]
[White "Nordquelle, Daniel"]
[Black "Aulin-Jansson, Joran"]
[Result "0-1"]
[ECO "C10"]
[WhiteElo "2130"]
[BlackElo "2214"]
[Annotator "NA"]
[PlyCount "66"]
[EventDate "2021.10.29"]
[EventType "team-tourn"]
[EventCountry "NOR"]
[SourceTitle "playchess.com"]
[Source "ChessBase"]
[SourceQuality "1"]
[TimeControl "40/5400+30:1800+30"]

1. e4 {[%emt 0:00:03]} e6 {[%emt 0:00:12]} 2. d4 {[%emt 0:00:13]} d5 {[%emt 0:00:06]} 3. Nd2 {[%emt 0:00:09]} dxe4 {[%emt 0:01:45]} 4. Nxe4 {[%emt 0:00:11]} Be7 {[%emt 0:00:07]} 5. Nf3 {[%emt 0:05:50]} Nf6 {[%emt 0:03:20]} 6. Bd3 {[%emt 0:01:12]} Nbd7 {[%emt 0:00:31]} 7. O-O {[%emt 0:03:50]} Nxe4 {[%emt 0:00:59]} 8. Bxe4 {[%emt 0:00:05]} Nf6 {[%emt 0:00:06]} 9. Bd3 {[%emt 0:00:05]} c5 {[%emt 0:00:35]} 10. Bf4 {[%emt 0:08:30]} O-O {[%emt 0:00:28]} 11. c4 {[%emt 0:10:54]} b6 {[%emt 0:00:31]} 12. Qe2 {[%emt 0:17:12]} Bb7 {[%emt 0:01:29]} 13. Rfd1 {[%emt 0:01:52]} Bd6 {[%emt 0:07:40]} 14. Be5 {[%emt 0:03:07]} Qe7 {[%emt 0:01:43]} 15. Qe3 {[%emt 0:20:55]} Rfd8 {[%emt 0:05:23]} 16. Qf4 {[%emt 0:01:18]} cxd4 {[%emt 0:02:28]} 17. Nxd4 {[%emt 0:01:31]} Bxe5 {[%emt 0:08:44]} 18. Qxe5 {[%emt 0:00:06]} Rd7 {[%emt 0:00:08]} 19. Bc2 {[%emt 0:04:21]} Rad8 {[%emt 0:00:51]} 20. Ba4 {[%emt 0:02:14]} Ng4 {[%emt 0:03:35]} 21. Qf4 {[%emt 0:13:34]} e5 {[%emt 0:00:21]} 22. Qxg4 {[%emt 0:00:57]} Rxd4 {[%emt 0:00:09]} 23. Qg3 {[%emt 0:02:50]} h5 {[%emt 0:01:02]} 24. Rxd4 {[%emt 0:00:34]} Rxd4 {[%emt 0:00:20]} 25. Bd1 {[%emt 0:00:05]} h4 {[%emt 0:00:35]} 26. Qc3 {[%emt 0:00:21]} Qd6 {[%emt 0:03:07]} 27. Be2 {[%emt 0:00:46]} Qg6 {[%emt 0:00:27]} 28. Bf3 {[%emt 0:00:32]} Rd3 {[%emt 0:00:21]} 29. Bxb7 {[%emt 0:00:57]} Rxc3 {[%emt 0:00:11]} 30. bxc3 {[%emt 0:00:03]} Qd3 {[%emt 0:00:36]} 31. Bd5 {[%emt 0:01:09]} Qxc3 {[%emt 0:02:35]} 32. Rd1 {[%emt 0:00:30]} Qc2 {[%emt 0:00:53]} 33. Ra1 {[%emt 0:00:23]} Qb2 {[%emt 0:00:21]} 0-1

[Event "NOR-chT Eliteserien 2021-22"]
[Site "Norway"]
[Date "2022.03.06"]
[Round "9.1"]
[White "Blomqvist, Erik"]
[Black "Risting, Eivind Olav"]
[Result "1-0"]
[ECO "B56"]
[WhiteElo "2536"]
[BlackElo "2311"]
[Annotator "ChessBase"]
[PlyCount "43"]
[EventDate "2021.10.29"]
[EventType "team-tourn"]
[EventCountry "NOR"]
[SourceTitle "playchess.com"]
[Source "ChessBase"]
[SourceQuality "1"]
[TimeControl "40/5400+30:1800+30"]

1. e4 {[%emt 0:00:09]} c5 {[%emt 0:00:11]} 2. Nf3 {[%emt 0:00:10]} d6 {[%emt 0:00:12]} 3. d4 {[%emt 0:01:07]} cxd4 {[%emt 0:00:09]} 4. Nxd4 {[%emt 0:00:09]} Nf6 {[%emt 0:00:11]} 5. Nc3 {[%emt 0:00:08]} Bd7 {[%emt 0:00:52]} 6. h3 {[%emt 0:02:06]} e6 {[%emt 0:03:03]} 7. g4 {[%emt 0:02:28]} h6 {[%emt 0:06:15]} 8. Be3 {[%emt 0:01:03]} Nc6 {[%emt 0:02:06]} 9. f4 {[%emt 0:04:21]} Be7 {[%emt 0:06:29]} 10. Qe2 {[%emt 0:05:49]} Nxd4 {[%emt 0:05:41]} 11. Bxd4 {[%emt 0:00:07]} Qa5 {[%emt 0:01:37]} 12. O-O-O {[%emt 0:07:37]} e5 {[%emt 0:12:35]} 13. Be3 {[%emt 0:04:38]} Rc8 {[%emt 0:04:23]} 14. Kb1 {[%emt 0:05:58]} Rxc3 {[%emt 0:13:27]} 15. Bd2 {[%emt 0:00:23]} Rxc2 {[%emt 0:09:52]} 16. Bxa5 {[%emt 0:00:06]} Rxe2 {[%emt 0:00:04]} 17. Bxe2 {[%emt 0:00:18]} Nxe4 {[%emt 0:04:01]} 18. fxe5 {[%emt 0:03:17]} dxe5 {[%emt 0:08:26]} 19. Rd5 {[%emt 0:04:04]} Ng3 {[%emt 0:06:45]} 20. Rhd1 {[%emt 0:03:41]} Bc6 {[%emt 0:04:32]} 21. Rxe5 {[%emt 0:02:51]} Nxe2 {[%emt 0:05:45]} 22. Rd8# {[%emt 0:00:11]} 1-0

[Event "NOR-chT Eliteserien 2021-22"]
[Site "Norway"]
[Date "2022.03.06"]
[Round "9.2"]
[White "Storme, Isak"]
[Black "Djurhuus, Rune"]
[Result "1-0"]
[ECO "B38"]
[WhiteElo "2352"]
[BlackElo "2403"]
[Annotator "NA"]
[PlyCount "95"]
[EventDate "2021.10.29"]
[EventType "team-tourn"]
[EventCountry "NOR"]
[SourceTitle "playchess.com"]
[Source "ChessBase"]
[SourceQuality "1"]
[TimeControl "40/5400+30:1800+30"]

1. Nf3 {[%emt 0:00:04]} Nf6 {[%emt 0:12:45]} 2. c4 {[%emt 0:00:13]} c5 {[%emt 0:00:09]} 3. Nc3 {[%emt 0:00:47]} g6 {[%emt 0:00:14]} 4. d4 {[%emt 0:03:06]} cxd4 {[%emt 0:00:09]} 5. Nxd4 {[%emt 0:00:09]} Nc6 {[%emt 0:00:06]} 6. e4 {[%emt 0:03:15]} Bg7 {[%emt 0:00:07]} 7. Be3 {[%emt 0:08:52]} d6 {[%emt 0:01:38]} 8. Be2 {[%emt 0:02:17]} O-O {[%emt 0:00:16]} 9. O-O {[%emt 0:00:11]} Nxd4 {[%emt 0:03:08]} 10. Bxd4 {[%emt 0:01:23]} Bd7 {[%emt 0:00:05]} 11. h3 {[%emt 0:12:39]} Bc6 {[%emt 0:00:24]} 12. Qc2 {[%emt 0:00:18]} e6 {[%emt 0:10:44]} 13. Rad1 {[%emt 0:10:00]} Qc7 {[%emt 0:01:06]} 14. Rd2 {[%emt 0:01:21]} a6 {[%emt 0:01:40]} 15. Rfd1 {[%emt 0:01:43]} Rfd8 {[%emt 0:06:31]} 16. Be3 {[%emt 0:16:49]} h6 {[%emt 0:15:20]} 17. Bf4 {[%emt 0:09:24]} e5 {[%emt 0:06:42]} 18. Be3 {[%emt 0:00:20]} Rac8 {[%emt 0:01:45]} 19. Qb3 {[%emt 0:03:35]} Qe7 {[%emt 0:03:49]} 20. Bd3 {[%emt 0:07:40]} Nd7 {[%emt 0:05:05]} 21. Be2 {[%emt 0:04:53]} Nc5 {[%emt 0:03:42]} 22. Bxc5 {[%emt 0:00:35]} dxc5 {[%emt 0:00:04]} 23. Nd5 {[%emt 0:01:01]} Bxd5 {[%emt 0:02:16]} 24. Rxd5 {[%emt 0:00:08]} Rxd5 {[%emt 0:02:29]} 25. Rxd5 {[%emt 0:00:09]} h5 {[%emt 0:00:49]} 26. g3 {[%emt 0:02:20]} h4 {[%emt 0:04:46]} 27. gxh4 {[%emt 0:02:42]} Qxh4 {[%emt 0:00:29]} 28. Qxb7 {[%emt 0:01:08]} Qxh3 {[%emt 0:04:54]} 29. Qxa6 {[%emt 0:00:49]} Rb8 {[%emt 0:01:19]} 30. b3 {[%emt 0:02:57]} Bh6 {[%emt 0:00:48]} 31. Rd3 {[%emt 0:01:10]} Qh4 {[%emt 0:00:28]} 32. Qd6 {[%emt 0:02:24]} Ra8 {[%emt 0:02:15]} 33. a4 {[%emt 0:01:47]} Bf4 {[%emt 0:00:52]} 34. Bf3 {[%emt 0:00:24]} Kg7 {[%emt 0:00:46]} 35. Kf1 {[%emt 0:00:36]} Qg5 {[%emt 0:04:10]} 36. Qxc5 {[%emt 0:00:37]} Bc1 {[%emt 0:01:59]} 37. a5 {[%emt 0:00:24]} Bb2 {[%emt 0:00:03]} 38. b4 {[%emt 0:00:35]} Qc1+ {[%emt 0:01:52]} 39. Rd1 {[%emt 0:00:27]} Qf4 {[%emt 0:00:04]} 40. Qe3 {[%emt 0:00:24]} Qf6 {[%emt 0:00:02]} 41. Qb3 {[%emt 0:06:31]} Rh8 {[%emt 0:01:52]} 42. Qxb2 {[%emt 0:05:25]} Qxf3 {[%emt 0:00:30]} 43. Qxe5+ {[%emt 0:00:30]} Kh7 {[%emt 0:00:30]} 44. Rd6 {[%emt 0:00:30]} Qb3 {[%emt 0:00:30]} 45. Kg2 {[%emt 0:00:30]} Qxb4 {[%emt 0:00:30]} 46. Rd1 {[%emt 0:00:30]} Qxc4 {[%emt 0:00:30]} 47. Rh1+ {[%emt 0:00:30]} Kg8 {[%emt 0:00:30]} 48. Rxh8# {[%emt 0:00:30]} 1-0

[Event "NOR-chT Eliteserien 2021-22"]
[Site "Norway"]
[Date "2022.03.06"]
[Round "9.3"]
[White "Sjoberg, Isak"]
[Black "Lindbol, Aleksander"]
[Result "0-1"]
[ECO "B15"]
[WhiteElo "2322"]
[BlackElo "2222"]
[Annotator "ChessBase"]
[PlyCount "80"]
[EventDate "2021.10.29"]
[EventType "team-tourn"]
[EventCountry "NOR"]
[SourceTitle "playchess.com"]
[Source "ChessBase"]
[SourceQuality "1"]
[TimeControl "40/5400+30:1800+30"]

1. e4 {[%emt 0:00:02]} c6 {[%emt 0:00:31]} 2. d4 {[%emt 0:01:00]} d5 {[%emt 1:30:59]} 3. Nc3 {[%emt 0:01:25]} dxe4 {[%emt 0:02:39]} 4. Nxe4 {[%emt 0:00:07]} Nf6 {[%emt 0:00:09]} 5. Nxf6+ {[%emt 0:00:05]} exf6 {[%emt 0:00:05]} 6. c3 {[%emt 0:01:40]} Bd6 {[%emt 0:01:17]} 7. Bd3 {[%emt 0:00:58]} O-O {[%emt 0:02:16]} 8. Qc2 {[%emt 0:00:16]} Re8+ {[%emt 0:00:17]} 9. Ne2 {[%emt 0:00:08]} h5 {[%emt 0:00:09]} 10. O-O {[%emt 0:00:10]} h4 {[%emt 0:00:33]} 11. Bf4 {[%emt 1:30:09]} Na6 {[%emt 0:00:30]} 12. Rfe1 {[%emt 0:00:07]} Nc7 {[%emt 1:27:39]} 13. h3 {[%emt 0:00:31]} Nd5 {[%emt 0:08:45]} 14. Bxd6 {[%emt 0:11:30]} Qxd6 {[%emt 0:00:09]} 15. Ng3 {[%emt 0:04:44]} Be6 {[%emt 0:09:57]} 16. Ne4 {[%emt 0:04:40]} Qc7 {[%emt 0:02:03]} 17. Nc5 {[%emt 0:04:41]} Nf4 {[%emt 0:02:14]} 18. Bh7+ {[%emt 1:07:14]} Kh8 {[%emt 0:03:42]} 19. Bf5 {[%emt 0:10:40]} Bd5 {[%emt 0:07:36]} 20. Be4 {[%emt 0:08:00]} b6 {[%emt 0:14:52]} 21. Na6 {[%emt 0:03:42]} Qe7 {[%emt 0:15:37]} 22. Bxd5 {[%emt 0:08:04]} Qxe1+ {[%emt 0:00:52]} 23. Rxe1 {[%emt 0:00:05]} Rxe1+ {[%emt 0:00:04]} 24. Kh2 {[%emt 0:00:10]} Nxd5 {[%emt 0:00:49]} 25. c4 {[%emt 0:00:38]} Ne7 {[%emt 0:01:28]} 26. Qd2 {[%emt 0:05:11]} Ra1 {[%emt 0:02:30]} 27. Qe2 {[%emt 0:01:25]} Ng6 {[%emt 0:02:01]} 28. Nb4 {[%emt 0:02:21]} c5 {[%emt 0:06:57]} 29. dxc5 {[%emt 0:05:21]} bxc5 {[%emt 0:00:05]} 30. Qh5+ {[%emt 0:03:08]} Kg8 {[%emt 0:00:05]} 31. Qxc5 {[%emt 0:00:04]} Re8 {[%emt 0:03:05]} 32. Nd3 {[%emt 0:01:55]} Rd1 {[%emt 0:02:28]} 33. Qa3 {[%emt 0:00:52]} Rd8 {[%emt 0:02:37]} 34. Nb4 {[%emt 0:05:16]} R8d2 {[%emt 0:02:28]} 35. Qf3 {[%emt 0:00:21]} Rf1 {[%emt 0:02:41]} 36. Nd3 {[%emt 0:00:33]} Rdd1 {[%emt 0:01:00]} 37. g3 {[%emt 0:00:59]} hxg3+ {[%emt 0:00:23]} 38. Kxg3 {[%emt 0:00:06]} Rg1+ {[%emt 0:00:56]} 39. Kh2 {[%emt 0:00:04]} f5 {[%emt 0:01:20]} 40. b3 {[%emt 0:08:41]} Nh4 {[%emt 0:00:34]} 0-1

[Event "NOR-chT Eliteserien 2021-22"]
[Site "Norway"]
[Date "2022.03.06"]
[Round "9.4"]
[White "Kjolberg, Jens Hjorth"]
[Black "Tryggestad, Andreas Garberg"]
[Result "1-0"]
[ECO "C02"]
[WhiteElo "2154"]
[BlackElo "2273"]
[Annotator "NA"]
[PlyCount "71"]
[EventDate "2021.10.29"]
[EventType "team-tourn"]
[EventCountry "NOR"]
[SourceTitle "playchess.com"]
[Source "ChessBase"]
[SourceQuality "1"]
[TimeControl "40/5400+30:1800+30"]

1. e4 {[%emt 0:01:08]} c5 {[%emt 0:00:05]} 2. Nf3 {[%emt 0:00:16]} e6 {[%emt 0:00:06]} 3. c3 {[%emt 0:00:21]} d5 {[%emt 0:01:19]} 4. e5 {[%emt 0:00:06]} Nc6 {[%emt 0:01:05]} 5. d4 {[%emt 0:00:21]} Qb6 {[%emt 0:00:11]} 6. Bd3 {[%emt 0:02:02]} cxd4 {[%emt 0:02:32]} 7. O-O {[%emt 0:01:52]} Bd7 {[%emt 0:03:12]} 8. Re1 {[%emt 0:07:42]} dxc3 {[%emt 0:02:31]} 9. bxc3 {[%emt 0:00:46]} Bc5 {[%emt 0:00:22]} 10. Qe2 {[%emt 0:03:45]} Nge7 {[%emt 0:02:34]} 11. Nbd2 {[%emt 0:02:49]} Nf5 {[%emt 0:02:33]} 12. Nb3 {[%emt 0:04:38]} Be7 {[%emt 0:01:17]} 13. Rb1 {[%emt 0:13:52]} Qc7 {[%emt 0:00:38]} 14. Bf4 {[%emt 0:12:22]} Qc8 {[%emt 0:02:03]} 15. g4 {[%emt 0:05:04]} Nh6 {[%emt 0:01:59]} 16. h3 {[%emt 0:00:59]} Ng8 {[%emt 0:03:54]} 17. c4 {[%emt 0:05:01]} dxc4 {[%emt 0:05:55]} 18. Bxc4 {[%emt 0:00:33]} Bb4 {[%emt 0:00:38]} 19. Red1 {[%emt 0:06:09]} Nge7 {[%emt 0:00:13]} 20. Qd3 {[%emt 0:04:18]} Nd5 {[%emt 0:06:03]} 21. Bxd5 {[%emt 0:00:54]} exd5 {[%emt 0:00:02]} 22. Nbd4 {[%emt 0:02:43]} Be7 {[%emt 0:02:13]} 23. Nf5 {[%emt 0:06:28]} O-O {[%emt 0:06:01]} 24. Rdc1 {[%emt 0:02:34]} Bxf5 {[%emt 0:04:51]} 25. gxf5 {[%emt 0:02:08]} Qd7 {[%emt 0:00:13]} 26. Kh2 {[%emt 0:02:50]} Kh8 {[%emt 0:10:49]} 27. Rg1 {[%emt 0:00:31]} Rg8 {[%emt 0:00:02]} 28. Rg4 {[%emt 0:01:10]} Rac8 {[%emt 0:02:07]} 29. a3 {[%emt 0:04:39]} d4 {[%emt 0:02:31]} 30. Rbg1 {[%emt 0:01:11]} Qd5 {[%emt 0:00:21]} 31. f6 {[%emt 0:00:55]} g6 {[%emt 0:07:06]} 32. fxe7 {[%emt 0:00:04]} Nxe7 {[%emt 0:00:02]} 33. Bg5 {[%emt 0:02:32]} Rc3 {[%emt 0:01:38]} 34. Bf6+ {[%emt 0:01:07]} Rg7 {[%emt 0:00:02]} 35. Qxd4 {[%emt 0:01:18]} Qxf3 {[%emt 0:02:14]} 36. R4g3 {[%emt 0:01:22]} 1-0